fUSD/lending_fUSD_20240902
["ID","MTS","AMOUNT","RATE_DAILY","PERIOD"]
[336900612,1725237084612,-525.35,0.00022487,2]
[336900613,1725237084622,-1090.69,0.00022487,2]
[336900614,1725237084631,-525.35,0.00022487,2]
[336900615,1725237084640,-525.35,0.00022487,2]
[336900616,1725237084649,-1282.34,0.00022487,2]
[336900617,1725237084658,-1282.34,0.00022487,2]
[336900618,1725237084668,-1282.34,0.00022487,2]
[336900619,1725237084677,-500.0,0.00022487,2]
[336900620,1725237084686,-242.63621512,0.00022487,2]
[336900621,1725237084695,-514.53576045,0.00022487,2]
[336900622,1725237084705,-500.0,0.00022487,2]
[336900623,1725237084714,-500.0,0.00022487,2]
[336900624,1725237084723,-1324.25,0.00022487,2]
[336900625,1725237084732,-205.33,0.00022487,2]
[336900626,1725237084742,-1324.25,0.00022487,2]
[336900627,1725237084751,-1324.25,0.00022487,2]
[336900628,1725237084761,-932.27,0.00022487,2]
[336900629,1725237084771,-932.27,0.00022487,2]
[336900630,1725237084780,-932.27,0.00022487,2]
[336900631,1725237084789,-500.0,0.00022487,2]
[336900632,1725237084798,-500.0,0.00022487,2]
[336900633,1725237084807,-603.18,0.00022487,2]
[336900634,1725237084816,-500.0,0.00022487,2]
[336900635,1725237084825,-603.18,0.00022487,2]
[336900636,1725237084835,-603.18,0.00022487,2]
[336900637,1725237084844,-1315.19,0.00022487,2]
[336900638,1725237084853,-500.0,0.00022487,2]
[336900639,1725237084864,-1315.19,0.00022487,2]
[336900640,1725237084874,-500.0,0.00022487,2]
[336900641,1725237084883,-1315.19,0.00022487,2]
[336900642,1725237084893,-500.0,0.00022487,2]
[336900643,1725237084902,-593.63,0.00022487,2]
[336900644,1725237084911,-593.63,0.00022487,2]
[336900645,1725237084920,-593.63,0.00022487,2]
[336900646,1725237084930,-500.0,0.00022487,2]
[336900647,1725237084939,-876.82,0.00022487,2]
[336900648,1725237084948,-500.0,0.00022487,2]
[336900649,1725237084957,-500.0,0.00022487,2]
[336900650,1725237084966,-876.82,0.00022487,2]
[336900651,1725237084975,-500.0,0.00022487,2]
[336900652,1725237084985,-500.0,0.00022487,2]
[336900653,1725237084994,-876.82,0.00022487,2]
[336900654,1725237085004,-500.0,0.00022487,2]
[336900655,1725237085013,-500.0,0.00022487,2]
[336900656,1725237085022,-500.0,0.00022487,2]
[336900657,1725237085032,-500.0,0.00022487,2]
[336900658,1725237085041,-1349.86,0.00022487,2]
[336900659,1725237085051,-500.0,0.00022487,2]
[336900660,1725237085060,-1349.86,0.00022487,2]
[336900661,1725237085069,-500.0,0.00022487,2]
[336900662,1725237085078,-1349.86,0.00022487,2]
[336900663,1725237085087,-500.0,0.00022487,2]
[336900664,1725237085096,-1285.76,0.00022487,2]
[336900665,1725237085107,-1285.76,0.00022487,2]
[336900666,1725237085116,-1285.76,0.00022487,2]
[336900667,1725237085126,-579.21,0.00022487,2]
[336900668,1725237085135,-579.21,0.00022487,2]
[336900669,1725237085144,-579.21,0.00022487,2]
[336900670,1725237085153,-500.0,0.00022487,2]
[336900671,1725237085163,-1211.61,0.00022487,2]
[336900672,1725237085172,-500.0,0.00022487,2]
[336900673,1725237085181,-1211.61,0.00022487,2]
[336900674,1725237085191,-500.0,0.00022487,2]
[336900675,1725237085202,-1211.61,0.00022487,2]
[336900676,1725237085212,-500.0,0.00022487,2]
[336900677,1725237085221,-500.0,0.00022487,2]
[336900678,1725237085231,-500.0,0.00022487,2]
[336900679,1725237085240,-500.0,0.00022487,2]
[336900680,1725237085250,-500.0,0.00022487,2]
[336900681,1725237085259,-500.0,0.00022487,2]
[336900682,1725237085268,-1085.01,0.00022487,2]
[336900683,1725237085279,-1077.01,0.00022487,2]
[336900684,1725237085288,-500.0,0.00022487,2]
[336900685,1725237085298,-1085.01,0.00022487,2]
[336900686,1725237085307,-1077.01,0.00022487,2]
[336900687,1725237085316,-500.0,0.00022487,2]
[336900688,1725237085325,-1085.01,0.00022487,2]
[336900689,1725237085334,-1077.01,0.00022487,2]
[336900690,1725237085343,-591.97746129,0.00022487,2]
[336900691,1725237085352,-500.0,0.00022487,2]
[336900692,1725237085363,-500.0,0.00022487,2]
[336900693,1725237085373,-500.0,0.00022487,2]
[336900694,1725237085382,-500.0,0.00022487,2]
[336900695,1725237085391,-500.0,0.00022487,2]
[336900696,1725237085400,-500.0,0.00022487,2]
[336900697,1725237085409,-754.45,0.00022487,2]
[336900698,1725237085418,-4245.29,0.00022487,2]
[336900699,1725237085427,-754.45,0.00022487,2]
[336900700,1725237085437,-4245.29,0.00022487,2]
[336900701,1725237085446,-754.45,0.00022487,2]
[336900702,1725237085455,-4245.29,0.00022487,2]
[336900703,1725237085465,-961.76,0.00022487,2]
[336900704,1725237085475,-961.76,0.00022487,2]
[336900705,1725237085484,-961.76,0.00022487,2]
[336900706,1725237085493,-500.0,0.00022487,2]
[336900707,1725237085503,-500.0,0.00022487,2]
[336900708,1725237085512,-500.0,0.00022487,2]
[336900709,1725237085522,-2868.7,0.00022487,2]
[336900710,1725237085531,-2868.7,0.00022487,2]
[336900711,1725237085540,-2868.7,0.00022487,2]
[336900712,1725237085550,-1209.55,0.00022487,2]
[336900713,1725237085559,-934.87,0.00022487,2]
[336900714,1725237085568,-1209.55,0.00022487,2]
[336900715,1725237085577,-500.0,0.00022487,2]
[336900716,1725237085587,-934.87,0.00022487,2]
[336900717,1725237085596,-1209.55,0.00022487,2]
[336900718,1725237085609,-500.0,0.00022487,2]
[336900719,1725237085619,-934.87,0.00022487,2]
[336900720,1725237085629,-500.0,0.00022487,2]
[336900721,1725237085638,-2732.49,0.00022487,2]
[336900722,1725237085648,-2732.49,0.00022487,2]
[336900723,1725237085658,-1571.6,0.00022487,2]
[336900724,1725237085667,-2732.49,0.00022487,2]
[336900725,1725237085676,-639.22242431,0.00022487,2]
[336900726,1725237085685,-1571.6,0.00022487,2]
[336900727,1725237085695,-1571.6,0.00022487,2]
[336900728,1725237085705,-1196.06,0.00022487,2]
[336900729,1725237085715,-1196.06,0.00022487,2]
[336900730,1725237085724,-1196.06,0.00022487,2]
[336900731,1725237085734,-500.0,0.00022487,2]
[336900732,1725237085743,-500.0,0.00022487,2]
[336900733,1725237085752,-500.0,0.00022487,2]
[336900734,1725237085763,-500.0,0.00022487,2]
[336900735,1725237085772,-500.0,0.00022487,2]
[336900736,1725237085782,-500.0,0.00022487,2]
[336900737,1725237085791,-500.0,0.00022487,2]
[336900738,1725237085800,-500.0,0.00022487,2]
[336900739,1725237085809,-500.0,0.00022487,2]
[336900740,1725237085819,-500.0,0.00022487,2]
[336900741,1725237085828,-500.0,0.00022487,2]
[336900742,1725237085838,-500.0,0.00022487,2]
[336900743,1725237085847,-1519.02,0.00022487,2]
[336900744,1725237085856,-564.81,0.00022487,2]
[336900745,1725237085869,-1243.09,0.00022487,2]
[336900746,1725237085878,-1519.02,0.00022487,2]
[336900747,1725237085887,-500.0,0.00022487,2]
[336900748,1725237085897,-564.81,0.00022487,2]
[336900749,1725237085906,-1243.09,0.00022487,2]
[336900750,1725237085915,-1519.02,0.00022487,2]
[336900751,1725237085925,-564.81,0.00022487,2]
[336900752,1725237085935,-500.0,0.00022487,2]
[336900753,1725237085944,-1243.09,0.00022487,2]
[336900754,1725237085953,-500.0,0.00022487,2]
[336900755,1725237085962,-390.72015203,0.00022487,2]
[336900756,1725237085971,-2438.73,0.00022487,2]
[336900757,1725237085984,-2438.73,0.00022487,2]
[336900758,1725237085994,-2438.73,0.00022487,2]
[336900759,1725237086003,-603.35,0.00022487,2]
[336900760,1725237086013,-603.35,0.00022487,2]
[336900761,1725237086023,-500.0,0.00022487,2]
[336900762,1725237086033,-603.35,0.00022487,2]
[336900763,1725237086043,-500.0,0.00022487,2]
[336900764,1725237086053,-500.0,0.00022487,2]
[336900765,1725237086063,-500.0,0.00022487,2]
[336900766,1725237086072,-649.33,0.00022487,2]
[336900767,1725237086082,-500.0,0.00022487,2]
[336900768,1725237086092,-500.0,0.00022487,2]
[336900769,1725237086101,-649.33,0.00022487,2]
[336900770,1725237086112,-500.0,0.00022487,2]
[336900771,1725237086121,-500.0,0.00022487,2]
[336900772,1725237086131,-500.0,0.00022487,2]
[336900773,1725237086140,-500.0,0.00022487,2]
[336900774,1725237086149,-649.33,0.00022487,2]
[336900775,1725237086158,-500.0,0.00022487,2]
[336900776,1725237086167,-500.0,0.00022487,2]
[336900777,1725237086177,-500.0,0.00022487,2]
[336900778,1725237086187,-500.0,0.00022487,2]
[336900779,1725237086199,-500.0,0.00022487,2]
[336900780,1725237086208,-500.0,0.00022487,2]
[336900781,1725237086217,-1162.01,0.00022487,2]
[336900782,1725237086226,-500.0,0.00022487,2]
[336900783,1725237086236,-1478.38,0.00022487,2]
[336900784,1725237086245,-1162.01,0.00022487,2]
[336900785,1725237086255,-500.0,0.00022487,2]
[336900786,1725237086264,-1478.38,0.00022487,2]
[336900787,1725237086275,-1162.01,0.00022487,2]
[336900788,1725237086284,-1478.38,0.00022487,2]
[336900789,1725237086294,-904.65,0.00022487,2]
[336900790,1725237086507,-904.65,0.00022487,2]
[336900791,1725237086518,-500.0,0.00022487,2]
[336900792,1725237086529,-904.65,0.00022487,2]
[336900793,1725237086540,-500.0,0.00022487,2]
[336900794,1725237086550,-743.76,0.00022487,2]
[336900795,1725237086561,-500.0,0.00022487,2]
[336900796,1725237086571,-743.76,0.00022487,2]
[336900797,1725237086580,-500.0,0.00022487,2]
[336900798,1725237086589,-743.76,0.00022487,2]
[336900799,1725237086598,-500.0,0.00022487,2]
[336900800,1725237086608,-500.0,0.00022487,2]
[336900801,1725237086618,-500.0,0.00022487,2]
[336900802,1725237086627,-500.0,0.00022487,2]
[336900803,1725237086636,-500.0,0.00022487,2]
[336900804,1725237086647,-1653.68,0.00022487,2]
[336900805,1725237086656,-1653.68,0.00022487,2]
[336900806,1725237086666,-1653.68,0.00022487,2]
[336900807,1725237086675,-1166.2,0.00022487,2]
[336900808,1725237086685,-1166.2,0.00022487,2]
[336900809,1725237086695,-1332.7,0.00022487,2]
[336900810,1725237086705,-1332.7,0.00022487,2]
[336900811,1725237086715,-1166.2,0.00022487,2]
[336900812,1725237086724,-1332.7,0.00022487,2]
[336900813,1725237086735,-500.0,0.00022487,2]
[336900814,1725237086746,-530.32519252,0.00022487,2]
[336900815,1725237086756,-500.0,0.00022487,2]
[336900816,1725237086766,-500.0,0.00022487,2]
[336900817,1725237086778,-500.0,0.00022487,2]
[336900818,1725237086789,-687.38,0.00022487,2]
[336900819,1725237086799,-687.38,0.00022487,2]
[336900820,1725237086811,-687.38,0.00022487,2]
[336900821,1725237086822,-677.74,0.00022487,2]
[336900822,1725237086832,-677.74,0.00022487,2]
[336900823,1725237086842,-559.67,0.00022487,2]
[336900824,1725237086851,-677.74,0.00022487,2]
[336900825,1725237086862,-559.67,0.00022487,2]
[336900826,1725237086872,-500.0,0.00022487,2]
[336900827,1725237086882,-559.67,0.00022487,2]
[336900828,1725237086891,-1069.51,0.00022487,2]
[336900829,1725237086901,-500.0,0.00022487,2]
[336900830,1725237086912,-1069.51,0.00022487,2]
[336900831,1725237086922,-500.0,0.00022487,2]
[336900832,1725237086932,-500.0,0.00022487,2]
[336900833,1725237086942,-500.0,0.00022487,2]
[336900834,1725237086951,-500.0,0.00022487,2]
[336900835,1725237086960,-500.0,0.00022487,2]
[336900836,1725237086969,-500.0,0.00022487,2]
[336900837,1725237086978,-500.0,0.00022487,2]
[336900838,1725237086987,-1100.51,0.00022487,2]
[336900839,1725237086996,-1100.51,0.00022487,2]
[336900840,1725237087005,-1100.51,0.00022487,2]
[336900841,1725237087015,-1069.51,0.00022487,2]
[336900842,1725237087024,-1121.84,0.00022487,2]
[336900843,1725237087034,-1121.84,0.00022487,2]
[336900844,1725237087044,-1121.84,0.00022487,2]
[336900845,1725237087054,-500.0,0.00022487,2]
[336900846,1725237087063,-500.0,0.00022487,2]
[336900847,1725237087072,-500.0,0.00022487,2]
[336900848,1725237087082,-500.0,0.00022487,2]
[336900849,1725237087091,-500.0,0.00022487,2]
[336900850,1725237087100,-500.0,0.00022487,2]
[336900851,1725237087112,-2344.11001501,0.00022487,2]
[336900852,1725237087898,-2017.59998499,0.00022487,2]
[336900853,1725237087907,-4361.71,0.00022487,2]
[336900854,1725237087916,-4361.71,0.00022487,2]
[336900855,1725237087925,-1012.99,0.00022487,2]
[336900856,1725237087934,-1012.99,0.00022487,2]
[336900857,1725237087943,-1012.99,0.00022487,2]
[336900858,1725237087952,-1269.34,0.00022487,2]
[336900859,1725237087961,-1379.54,0.00022487,2]
[336900860,1725237087970,-1269.34,0.00022487,2]
[336900861,1725237087979,-1379.54,0.00022487,2]
[336900862,1725237087988,-1269.34,0.00022487,2]
[336900863,1725237087997,-1379.54,0.00022487,2]
[336900864,1725237088006,-400.0,0.00022487,2]
[336900865,1725237088015,-400.0,0.00022487,2]
[336900866,1725237088024,-400.0,0.00022487,2]
[336900867,1725237088033,-4893.956872,0.00022487,7]
[336900868,1725237088042,-4893.956872,0.00022487,7]
[336900869,1725237088051,-4893.956872,0.00022487,7]
[336900870,1725237088060,-500.0,0.00022487,2]
[336900871,1725237088069,-500.0,0.00022487,2]
[336900872,1725237088078,-500.0,0.00022487,2]
[336900873,1725237088087,-1752.97,0.00022487,2]
[336900874,1725237088096,-1752.97,0.00022487,2]
[336900875,1725237088105,-1752.97,0.00022487,2]
[336900876,1725237088121,-704.44,0.00022487,2]
[336900877,1725237088130,-1002.43,0.00022487,2]
[336900878,1725237088139,-704.44,0.00022487,2]
[336900879,1725237088149,-1002.43,0.00022487,2]
[336900880,1725237088158,-4893.956872,0.00022487,7]
[336900881,1725237088167,-704.44,0.00022487,2]
[336900882,1725237088176,-500.0,0.00022487,2]
[336900883,1725237088185,-1002.43,0.00022487,2]
[336900884,1725237088195,-1125.56,0.00022487,2]
[336900885,1725237088205,-500.0,0.00022487,2]
[336900886,1725237088214,-4893.956872,0.00022487,7]
[336900887,1725237088223,-1125.56,0.00022487,2]
[336900888,1725237088234,-500.0,0.00022487,2]
[336900889,1725237088244,-1125.56,0.00022487,2]
[336900890,1725237088254,-4893.956866,0.00022487,7]
[336900891,1725237088263,-500.0,0.00022487,2]
[336900892,1725237088272,-500.0,0.00022487,2]
[336900893,1725237088282,-500.0,0.00022487,2]
[336900894,1725237088291,-573.3,0.00022487,2]
[336900895,1725237088302,-967.65,0.00022487,2]
[336900896,1725237088313,-573.3,0.00022487,2]
[336900897,1725237088323,-967.65,0.00022487,2]
[336900898,1725237088333,-573.3,0.00022487,2]
[336900899,1725237088342,-967.65,0.00022487,2]
[336900900,1725237088352,-500.0,0.00022487,2]
[336900901,1725237088370,-500.0,0.00022487,2]
[336900902,1725237088379,-538.7404828,0.00022487,2]
[336900903,1725237088388,-1098.28,0.00022487,2]
[336900904,1725237088398,-1098.28,0.00022487,2]
[336900905,1725237088406,-1098.28,0.00022487,2]
[336900906,1725237088415,-1429.67,0.00022487,2]
[336900907,1725237088424,-500.0,0.00022487,2]
[336900908,1725237088433,-1429.67,0.00022487,2]
[336900909,1725237088443,-500.0,0.00022487,2]
[336900910,1725237088452,-1429.67,0.00022487,2]
[336900911,1725237088461,-584.89,0.00022487,2]
[336900912,1725237088470,-500.0,0.00022487,2]
[336900913,1725237088478,-584.89,0.00022487,2]
[336900914,1725237088487,-584.89,0.00022487,2]
[336900915,1725237088496,-2386.68,0.00022487,2]
[336900916,1725237088505,-2386.68,0.00022487,2]
[336900917,1725237088514,-2386.68,0.00022487,2]
[336900918,1725237088524,-1434.14,0.00022487,2]
[336900919,1725237088533,-1434.14,0.00022487,2]
[336900920,1725237088542,-488.58120724,0.00022487,2]
[336900921,1725237088555,-945.55879276,0.00022487,2]
[336900922,1725237088563,-59.37765286,0.00022487,2]
[336900923,1725237088574,-1088.90234714,0.00022487,2]
[336900924,1725237088583,-1148.28,0.00022487,2]
[336900925,1725237088592,-1148.28,0.00022487,2]
[336900926,1725237088601,-1207.46,0.00022487,2]
[336900927,1725237088611,-500.0,0.00022487,2]
[336900928,1725237088620,-1207.46,0.00022487,2]
[336900929,1725237088629,-1340.58,0.00022487,2]
[336900930,1725237088638,-500.0,0.00022487,2]
[336900931,1725237088648,-1207.46,0.00022487,2]
[336900932,1725237088656,-500.0,0.00022487,2]
[336900933,1725237088665,-500.0,0.00022487,2]
[336900934,1725237088675,-1340.58,0.00022487,2]
[336900935,1725237088685,-476.56747286,0.00022487,2]
[336900936,1725237089198,-334.74133646,0.00022192,2]
[336900937,1725237089207,-325.91530776,0.00022477,2]
[336900938,1725237089219,-174.08469224,0.00022477,2]
[336900939,1725237089229,-126.61577293,0.00022487,2]
[336900940,1725237089238,-500.0,0.00022487,2]
[336900941,1725237089247,-1340.58,0.00022487,2]
[336900942,1725237089256,-730.95,0.00022487,2]
[336900943,1725237089265,-295.74560659,0.00022487,2]
[336900944,1725237089277,-279.71800287,0.00022487,2]
[336900945,1725237089286,-577.68,0.00022487,2]
[336900946,1725237089296,-730.95,0.00022487,2]
[336900947,1725237089305,-140.00762013,0.00022487,2]
[336900948,1725237090258,-266.362806,0.00022469,2]
[336900949,1725237163181,161.25,0.00026838,120]
[336900952,1725237844236,150.0,0.00010959,2]
[336900953,1725237844260,9.14,0.00010959,2]
[336900954,1725237922740,550.0,0.00011,2]
[336900955,1725237924665,-177.64632176,0.00013,2]
[336900956,1725237925391,-150.0,0.00013,2]
[336900957,1725237942691,179.41,0.00026707,120]
[336900961,1725238066372,350.0,0.00027,120]
[336900962,1725238101461,150.0,0.000125,2]
[336900963,1725238101481,150.0,0.000125,2]
[336900964,1725238101503,50.0,0.000125,2]
[336900966,1725238135133,-272.35367824,0.00013,2]
[336900967,1725238135200,400.0,0.00027,120]
[336900968,1725238185116,-400.0,0.00017277,2]
[336900969,1725238214699,350.0,0.000125,2]
[336900976,1725238232096,-462.57098659,0.00019473,2]
[336900991,1725238238204,-23.74901341,0.00019473,2]
[336900992,1725238238215,-300.0,0.00019725,2]
[336900993,1725238238225,-378.25,0.00021231,2]
[336900994,1725238238234,-219.35936284,0.00021273,2]
[336900995,1725238238246,-780.64063716,0.00021273,2]
[336900996,1725238238256,-250.0,0.00021305,2]
[336900997,1725238238266,-169.97,0.00021339,2]
[336900998,1725238238275,-179.41,0.00021366,2]
[336900999,1725238238286,-101.873198,0.00021434,2]
[336901000,1725238238298,-398.116802,0.00021434,2]
[336901001,1725238238307,-161.25,0.0002147,2]
[336901002,1725238238318,-420.0,0.00021484,2]
[336901003,1725238238327,-486.32,0.00021737,2]
[336901004,1725238238337,-260.14,0.00021918,2]
[336901005,1725238238347,-165.5,0.00021918,2]
[336901006,1725238238357,-150.0,0.00021918,2]
[336901007,1725238238366,-3000.0,0.000222,2]
[336901008,1725238238375,-150.0,0.0002223,2]
[336901009,1725238238385,-3000.0,0.0002226,2]
[336901010,1725238238395,-150.0,0.0002229,2]
[336901011,1725238238404,-500.0,0.00022307,2]
[336901012,1725238238414,-151.23679885,0.00022323,2]
[336901013,1725238238424,-899.16068223,0.00022359,2]
[336901014,1725238238433,-899.16068223,0.00022364,2]
[336901015,1725238238442,-168.34720524,0.00022367,2]
[336901016,1725238238452,-899.16068223,0.00022368,2]
[336901017,1725238238462,-202.0686996,0.00022369,2]
[336901018,1725238238474,-150.0,0.00022369,2]
[336901019,1725238238490,-173.72819183,0.00022369,2]
[336901020,1725238238499,-899.16068223,0.00022373,2]
[336901021,1725238238508,-899.16068223,0.00022377,2]
[336901022,1725238238517,-899.16068223,0.00022382,2]
[336901023,1725238238527,-168.34720523,0.00022383,2]
[336901025,1725238238536,-899.16068223,0.00022386,2]
[336901027,1725238238545,-5870.84009495,0.00022387,2]
[336901029,1725238238555,-899.16068223,0.00022391,2]
[336901031,1725238238564,-899.16068223,0.00022395,2]
[336901033,1725238238574,-1259.0,0.00022397,2]
[336901035,1725238238583,-447.0,0.00022397,2]
[336901037,1725238238592,-623.0,0.00022397,2]
[336901039,1725238238604,-1545.0,0.00022397,2]
[336901041,1725238238614,-1019.362,0.00022397,2]
[336901043,1725238238623,-557.0,0.00022397,2]
[336901045,1725238238632,-810.0,0.00022397,2]
[336901047,1725238238641,-150.0,0.00022397,2]
[336901049,1725238238652,-552.0,0.00022397,2]
[336901051,1725238238662,-1898.0,0.00022397,2]
[336901053,1725238238672,-1139.0,0.00022397,2]
[336901055,1725238238682,-248.0,0.00022397,2]
[336901057,1725238238691,-3323.0,0.00022397,2]
[336901059,1725238238701,-804.0,0.00022397,2]
[336901061,1725238238711,-250.0,0.00022397,2]
[336901063,1725238238722,-5853.0,0.00022397,2]
[336901065,1725238238732,-191.159,0.00022397,2]
[336901067,1725238238741,-216.0,0.00022397,2]
[336901069,1725238238750,-267.025,0.00022397,2]
[336901071,1725238238759,-3732.0,0.00022397,2]
[336901073,1725238238769,-150.0,0.00022397,2]
[336901075,1725238238778,-150.967,0.00022397,2]
[336901077,1725238238788,-2442.40365446,0.00022397,2]
[336901079,1725238238800,-9553.154996,0.00022397,2]
[336901082,1725238238813,-1466.44134954,0.00022397,2]
[336901084,1725238238822,-1144.0,0.00022397,2]
[336901086,1725238238833,-163.289,0.00022397,2]
[336901088,1725238238842,-297.134,0.00022397,2]
[336901090,1725238238852,-1078.0,0.00022397,2]
[336901092,1725238238860,-168.34720523,0.00022398,2]
[336901094,1725238238869,-899.16068223,0.000224,2]
[336901096,1725238238879,-159.38210089,0.00022417,10]
[336901098,1725238238888,-3708.53566261,0.00022417,10]
[336901100,1725238238899,-542.52897274,0.00022417,10]
[336901102,1725238238908,-13181.70602726,0.00022457,3]
[336901104,1725238238919,-1384.75,0.00022457,3]
[336901106,1725238238930,-5915.5,0.00022457,3]
[336901109,1725238238942,-363.97062925,0.00022457,3]
[336901111,1725238238955,-491.77976376,0.00022457,3]
[336901114,1725238238969,-10340.0,0.00022457,3]
[336901117,1725238238987,-5371.60347313,0.00022457,3]
[336901119,1725238238996,-13880.4840444,0.00022459,3]
[336901123,1725238239032,-955.27057878,0.00022459,3]
[336901126,1725238239049,-997.9505,0.00022459,3]
[336901240,1725238240192,-294.14380208,0.00022459,3]
[336901243,1725238240249,-5373.59318804,0.00022459,3]
[336901250,1725238240307,-7312.89457521,0.00022459,3]
[336901252,1725238240319,-202743.85014549,0.00022459,3]
[336901254,1725238240329,-153.56,0.00022459,2]
[336901256,1725238240340,-150.68171744,0.00022465,2]
[336901258,1725238240349,-472.24405154,0.00022465,2]
[336901260,1725238240360,-82943.44827854,0.00022466,8]
[336901262,1725238240370,-552.34230175,0.00022466,2]
[336901264,1725238240379,-500.0,0.00022469,2]
[336901266,1725238240389,-500.0,0.00022469,2]
[336901268,1725238240398,-500.0,0.00022469,2]
[336901270,1725238240407,-500.0,0.00022469,2]
[336901272,1725238240417,-500.0,0.00022469,2]
[336901274,1725238240427,-381.79496445,0.00022469,2]
[336901276,1725238240437,-457.31225685,0.00022469,2]
[336901278,1725238240447,-500.0,0.00022469,2]
[336901280,1725238240456,-328.64532141,0.00022469,2]
[336901282,1725238240465,-500.0,0.00022469,2]
[336901284,1725238240476,-500.0,0.00022469,2]
[336901286,1725238240485,-500.0,0.00022469,2]
[336901288,1725238240494,-500.0,0.00022469,2]
[336901290,1725238240504,-159.51441942,0.00022469,2]
[336901292,1725238240513,-500.0,0.00022469,2]
[336901294,1725238240523,-500.0,0.00022469,2]
[336901296,1725238240532,-631.35951812,0.00022469,2]
[336901298,1725238240541,-318.09702138,0.00022469,2]
[336901300,1725238240551,-500.0,0.00022469,2]
[336901302,1725238240560,-500.0,0.00022469,2]
[336901304,1725238240569,-848.57,0.00022469,2]
[336901306,1725238240578,-405.80235417,0.00022469,2]
[336901308,1725238240587,-500.0,0.00022469,2]
[336901310,1725238240598,-500.0,0.00022469,2]
[336901312,1725238240609,-500.0,0.00022469,2]
[336901314,1725238240618,-500.0,0.00022469,2]
[336901316,1725238240627,-500.0,0.00022469,2]
[336901318,1725238240637,-500.0,0.00022469,2]
[336901320,1725238240646,-500.0,0.00022469,2]
[336901322,1725238240655,-500.0,0.00022469,2]
[336901324,1725238240664,-457.59360274,0.00022469,2]
[336901326,1725238240674,-580.34,0.00022469,2]
[336901328,1725238240684,-500.0,0.00022469,2]
[336901330,1725238240694,-500.0,0.00022469,2]
[336901332,1725238240703,-1201.04,0.00022469,2]
[336901334,1725238240712,-500.0,0.00022469,2]
[336901336,1725238240721,-1409.23,0.00022469,2]
[336901338,1725238240729,-500.0,0.00022469,2]
[336901340,1725238240739,-500.0,0.00022469,2]
[336901342,1725238240748,-522.43206618,0.00022469,2]
[336901344,1725238240757,-630.9,0.00022469,2]
[336901346,1725238240767,-500.0,0.00022469,2]
[336901348,1725238240776,-500.0,0.00022469,2]
[336901350,1725238240786,-523.43,0.00022469,2]
[336901352,1725238240795,-500.0,0.00022469,2]
[336901354,1725238240804,-500.0,0.00022469,2]
[336901356,1725238240813,-500.0,0.00022469,2]
[336901358,1725238240822,-500.0,0.00022469,2]
[336901360,1725238240833,-500.0,0.00022469,2]
[336901362,1725238240842,-500.0,0.00022469,2]
[336901364,1725238240851,-500.0,0.00022469,2]
[336901366,1725238240861,-660.1,0.00022469,2]
[336901368,1725238240870,-500.0,0.00022469,2]
[336901369,1725238240880,-504.65,0.00022469,2]
[336901371,1725238240890,-565.85,0.00022469,2]
[336901373,1725238240900,-500.0,0.00022469,2]
[336901376,1725238240909,-500.0,0.00022469,2]